bitfinex/quotes_SOLUSD_20250414
["timestamp","ask_amount","ask_price","bid_price","bid_amount"]
[1744652149935,17.20745423,129.39,129.34,17.20745423]
[1744652150623,17.20745423,129.39,129.35,7.7309]
[1744652151203,98.00745423,129.41,129.36,17.20745423]
[1744652151529,17.20745423,129.4,129.36,17.20745423]
[1744652151704,17.20745423,129.39,129.35,7.7309]
[1744652153726,17.20745423,129.37,129.35,7.7309]
[1744652153924,17.20745423,129.37,129.34,7.7312]
[1744652154302,17.20745423,129.36,129.33,7.732]
[1744652155328,17.20745423,129.36,129.32,7.7327]
[1744652155829,29.42332505,129.35,129.32,7.7327]
[1744652156326,29.42332505,129.35,129.32,24.94015423]
[1744652156631,15.93401175,129.34,129.33,17.20745423]
[1744652157024,12.0439664,129.34,129.33,17.20745423]
[1744652157930,12.0439664,129.34,129.33,24.93955423]
[1744652158117,12.0439664,129.34,129.33,25.22387737]
[1744652158507,12.0439664,129.39,129.35,1.6404]
[1744652158708,12.0439664,129.39,129.38,17.20745423]
[1744652159236,12.0439664,129.39,129.37,17.20745423]
[1744652159404,12.0439664,129.39,129.38,7.7291]
[1744652159801,17.20745423,129.41,129.38,7.7291]
[1744652161436,17.20745423,129.42,129.38,7.7291]
[1744652161743,19.7702664,129.43,129.38,7.7291]
[1744652161744,17.20745423,129.41,129.38,7.7291]
[1744652162034,17.20745423,129.39,129.35,1.6404]
[1744652162230,24.93425423,129.42,129.35,1.6404]
[1744652162231,17.20745423,129.38,129.35,1.6404]
[1744652162610,17.20745423,129.37,129.34,7.7313]
[1744652163218,17.20745423,129.36,129.31,52.4203158]
[1744652163431,17.20745423,129.36,129.32,7.7324]
[1744652164023,12.07018668,129.33,129.32,7.7324]
[1744652164430,12.07018668,129.33,129.32,24.93985423]
[1744652164736,12.07018668,129.33,129.32,25.22417737]
[1744652165244,5.31951152,129.33,129.32,63.48994937]
[1744652165543,5.31951152,129.33,129.32,44.55597737]
[1744652165842,5.31951152,129.33,129.32,63.48994937]
[1744652166045,3.28e-05,129.34,129.33,19.21829514]
[1744652166230,17.20745423,129.43,129.37,19.21829514]
[1744652166428,0.063,129.44,129.37,19.21829514]
[1744652166429,17.27045423,129.44,129.39,17.20745423]
[1744652166622,17.27045423,129.44,129.38,1.6255]
[1744652166623,0.063,129.44,129.4,17.20745423]
[1744652167346,0.063,129.44,129.4,43.20745423]
[1744652167526,0.063,129.44,129.43,17.20745423]
[1744652167727,0.063,129.44,129.43,25.21787737]
[1744652168321,0.063,129.44,129.43,24.93355423]
[1744652168527,0.063,129.44,129.43,7.7261]
[1744652168723,0.063,129.44,129.4,26.0]
[1744652169048,17.20745423,129.43,129.38,18.83295423]
[1744652169424,17.20745423,129.43,129.38,1.6255]
[1744652169623,17.20745423,129.42,129.39,7.7285]
[1744652169950,0.063,129.44,129.39,7.7285]
[1744652169951,17.20745423,129.43,129.39,7.7285]
[1744652170152,17.27045423,129.44,129.39,24.93595423]
[1744652171050,0.063,129.44,129.4,0.28432314]
[1744652171251,0.063,129.44,129.42,27.47822013]
[1744652171458,0.063,129.44,129.41,27.47822013]
[1744652171640,0.063,129.44,129.42,7.7267]
[1744652171834,0.063,129.44,129.41,35.20532013]
[1744652172033,27.47822013,129.42,129.38,1.6255]
[1744652172250,27.47822013,129.41,129.38,1.6255]
[1744652172745,27.47822013,129.42,129.38,1.6255]
[1744652172947,27.47822013,129.42,129.38,29.10372013]
[1744652173331,27.47822013,129.41,129.38,9.3545]
[1744652174249,27.47822013,129.42,129.38,9.3545]
[1744652174869,27.47822013,129.43,129.38,36.83272013]
[1744652175048,27.54122013,129.44,129.4,27.47822013]
[1744652175348,27.54122013,129.44,129.39,27.47822013]
[1744652175547,27.54122013,129.44,129.38,28.81956157]
[1744652175548,27.47822013,129.42,129.38,28.81956157]
[1744652175928,27.47822013,129.42,129.38,56.2977817]
[1744652176840,0.063,129.44,129.4,27.47822013]
[1744652177051,0.063,129.44,129.41,27.47822013]
[1744652177344,0.063,129.44,129.42,27.47822013]
[1744652178736,0.063,129.44,129.43,7.7261]
[1744652180037,0.063,129.44,129.42,7.7265]
[1744652181248,0.063,129.44,129.43,27.76254327]
[1744652181856,0.063,129.44,129.42,35.20472013]
[1744652182562,0.063,129.44,129.42,7.7265]
[1744652182867,27.54122013,129.44,129.42,7.7265]
[1744652183353,27.54122013,129.44,129.41,7.7273]
[1744652183553,27.47822013,129.43,129.41,7.7273]
[1744652184146,27.47822013,129.43,129.39,7.7282]
[1744652184454,38.1308091,129.42,129.38,0.28432314]
[1744652185048,12.06467521,129.42,129.39,27.47822013]
[1744652185363,12.06467521,129.42,129.38,27.76254327]
[1744652185665,39.54289534,129.42,129.38,7.7291]
[1744652185867,27.47822013,129.42,129.38,7.7291]
[1744652186163,27.47822013,129.43,129.38,35.20732013]
[1744652186476,39.60589534,129.44,129.39,27.47822013]
[1744652186763,27.47822013,129.42,129.38,7.7291]
[1744652187064,27.47822013,129.43,129.38,35.20732013]
[1744652187270,39.60589534,129.44,129.39,27.47822013]
[1744652187569,39.60589534,129.44,129.4,7.7279]
[1744652187866,27.47822013,129.43,129.4,7.7279]
[1744652189450,12.12767521,129.44,129.41,27.47822013]
[1744652189652,12.12767521,129.44,129.43,27.47822013]
[1744652189870,0.063,129.44,129.43,27.47822013]
[1744652190180,0.063,129.44,129.42,7.7267]
[1744652191869,0.063,129.44,129.42,24.90454245]
[1744652192371,0.063,129.44,129.43,17.17784245]
[1744652192575,0.063,129.44,129.43,17.46216559]
[1744652194171,0.063,129.44,129.43,25.18826559]
[1744652194378,0.063,129.44,129.43,25.47258873]
[1744652194675,0.063,129.44,129.43,48.05083658]
[1744652194676,0.0001,129.44,129.43,48.05083658]
[1744652195157,0.0001,129.44,129.43,44.12223759]
[1744652195652,0.0001,129.44,129.43,25.47258873]
[1744652198379,0.0001,129.44,129.43,8.29474628]
[1744652198552,0.0001,129.44,129.43,25.18826559]
[1744652201873,0.0001,129.44,129.43,25.47258873]
[1744652202576,0.0001,129.44,129.43,17.17784245]
[1744652203874,0.0001,129.44,129.43,24.90394245]
[1744652204278,0.0001,129.44,129.43,7.7261]
[1744652204490,0.0001,129.44,129.43,7.86826157]
[1744652204652,0.0001,129.44,129.43,25.04610402]
[1744652207475,0.0001,129.44,129.43,7.7261]
[1744652208464,0.0001,129.44,129.42,7.7265]
[1744652210778,0.0001,129.44,129.42,24.90434245]
[1744652211977,0.0001,129.44,129.42,7.7265]
[1744652212779,0.0001,129.44,129.42,24.90434245]
[1744652213277,0.0001,129.44,129.42,7.7265]
[1744652213485,0.0001,129.44,129.41,7.7271]
[1744652213778,0.0001,129.44,129.4,7.7277]
[1744652213779,17.17784245,129.43,129.4,7.7277]
[1744652213977,17.17784245,129.42,129.4,7.7277]
[1744652214156,17.17784245,129.42,129.39,7.7282]
[1744652214353,17.17784245,129.42,129.38,7.7288]
[1744652214574,17.17784245,129.4,129.37,7.7295]
[1744652214777,17.17784245,129.38,129.35,7.7309]
[1744652214981,17.17784245,129.37,129.32,14.18495403]
[1744652215165,17.17784245,129.37,129.33,47.17784245]
[1744652215363,14.209,129.41,129.35,17.17784245]
[1744652215562,17.17784245,129.39,129.34,17.17784245]
[1744652215770,17.17784245,129.37,129.33,47.17784245]
[1744652216278,29.25888796,129.38,129.33,47.17784245]
[1744652216489,29.25888796,129.38,129.34,17.32000402]
[1744652216867,12.08104551,129.38,129.35,7.7309]
[1744652217162,12.08104551,129.38,129.36,0.14216157]
[1744652217402,12.08104551,129.38,129.36,17.32000402]
[1744652217561,12.08104551,129.38,129.37,17.32000402]
[1744652217969,12.08104551,129.38,129.37,17.74648873]
[1744652218176,12.08104551,129.38,129.37,25.80648873]
[1744652218481,4.551e-05,129.38,129.37,44.45613759]
[1744652219191,17.17784245,129.43,129.39,0.14216157]
[1744652219905,54.54542255,129.44,129.39,0.14216157]
[1744652220061,17.17784245,129.43,129.39,0.14216157]
[1744652220257,17.17784245,129.43,129.39,17.32000402]
[1744652221277,17.17784245,129.43,129.4,7.7279]
[1744652221481,17.17784245,129.41,129.37,8.06]
[1744652221680,17.17784245,129.39,129.37,8.06]
[1744652221878,17.17784245,129.4,129.37,8.06]
[1744652222193,17.17784245,129.39,129.37,15.7894]
[1744652222881,17.17784245,129.39,129.37,7.7294]
[1744652223181,17.17784245,129.39,129.35,0.14216157]
[1744652223182,17.17784245,129.39,129.36,7.7303]
[1744652224765,17.17784245,129.4,129.36,7.7303]
[1744652225391,17.17784245,129.39,129.36,7.7303]
[1744652226194,7.7273,129.41,129.34,0.03]
[1744652226195,17.17784245,129.37,129.34,0.03]
[1744652226389,17.17784245,129.35,129.34,0.03]
[1744652226691,17.17784245,129.35,129.34,7.7615]
[1744652226890,17.17784245,129.36,129.34,7.7615]
[1744652227095,17.17784245,129.37,129.34,7.7615]
[1744652227994,17.17784245,129.39,129.34,24.93934245]
[1744652228175,17.17784245,129.37,129.34,7.7615]
[1744652228375,17.17784245,129.36,129.34,7.7615]
[1744652228686,17.17784245,129.37,129.34,7.7615]
[1744652228868,17.17784245,129.36,129.34,7.7615]
[1744652229066,10.65548214,129.39,129.34,0.03]
[1744652229265,13.8712,129.37,129.32,7.7624]
[1744652229573,17.17784245,129.35,129.32,7.7624]
[1744652229972,17.17784245,129.36,129.32,24.94024245]
[1744652230171,10.65548214,129.38,129.35,17.17784245]
[1744652230381,10.65548214,129.38,129.37,17.46216559]
[1744652230678,10.65548214,129.38,129.35,8.06]
[1744652230883,10.65548214,129.38,129.37,17.46216559]
[1744652231280,10.65548214,129.38,129.37,17.74648873]
[1744652231593,48.37672255,129.41,129.37,25.47618873]
[1744652231799,48.37672255,129.41,129.39,0.28432314]
[1744652232096,17.17784245,129.4,129.37,7.7297]
[1744652232298,65.554565,129.41,129.37,7.7297]
[1744652233500,65.554565,129.41,129.39,17.17784245]
[1744652233501,48.37672255,129.41,129.39,17.17784245]
[1744652233801,48.37672255,129.41,129.38,17.46216559]
[1744652233999,48.37672255,129.41,129.4,17.17784245]
[1744652234209,48.37672255,129.41,129.4,17.74648873]
[1744652234381,48.37672255,129.41,129.4,17.46216559]
[1744652234581,48.37672255,129.42,129.4,0.14216157]
[1744652234888,48.37672255,129.42,129.41,17.46216559]
[1744652235802,48.37672255,129.42,129.41,25.18946559]
[1744652235982,48.37682255,129.44,129.41,25.18946559]
[1744652237587,48.37682255,129.44,129.41,44.50786559]
[1744652237787,48.37682255,129.44,129.43,25.18826559]
[1744652237994,48.37682255,129.44,129.43,25.47258873]
[1744652239197,0.0001,129.44,129.43,25.47258873]
[1744652239702,0.0001,129.44,129.43,25.18826559]
[1744652241579,0.0001,129.44,129.43,7.7261]
[1744652242779,0.0001,129.44,129.43,24.90394245]
[1744652243095,0.0001,129.44,129.43,25.18826559]
[1744652243294,0.0001,129.44,129.43,25.47258873]
[1744652243499,0.0001,129.45,129.44,19.21829514]
[1744652243682,0.0001,129.45,129.44,36.39613759]
[1744652244382,0.0001,129.45,129.44,47.90935711]
[1744652245206,0.0001,129.45,129.44,44.12163759]
[1744652245387,0.0001,129.45,129.44,26.94379514]
[1744652245587,0.0001,129.45,129.44,44.12163759]
[1744652246507,0.0001,129.45,129.44,17.17784245]
[1744652246710,0.0001,129.45,129.43,17.17784245]
[1744652247015,0.0001,129.45,129.42,17.17784245]
[1744652247686,0.0001,129.45,129.43,17.17784245]
[1744652248387,0.0001,129.45,129.44,7.7255]
[1744652248694,17.17794245,129.45,129.42,7.7267]
[1744652249216,0.0001,129.45,129.42,7.7267]
[1744652249390,0.0001,129.45,129.44,17.17784245]
[1744652249714,0.0001,129.45,129.44,17.46216559]
[1744652250506,0.0001,129.45,129.44,25.18766559]
[1744652250708,0.0001,129.45,129.44,25.47198873]
[1744652250895,0.0001,129.45,129.44,33.51198873]
[1744652251090,0.0001,129.45,129.44,52.16163759]
[1744652251291,0.063,129.47,129.46,26.28432314]
[1744652251292,0.0001,129.47,129.46,26.28432314]
[1744652251517,0.0001,129.47,129.46,53.74232949]
[1744652252794,0.0001,129.47,129.46,61.46662949]
[1744652254502,0.0001,129.47,129.46,61.75095263]
[1744652254701,0.0001,129.47,129.46,35.46662949]
[1744652255514,0.0001,129.47,129.46,7.7243]
[1744652257209,0.0001,129.47,129.45,7.86706157]
[1744652257418,29.38604064,129.47,129.45,7.86706157]
[1744652257714,29.38604064,129.47,129.44,25.29820843]
[1744652258197,29.38604064,129.47,129.4,27.60016792]
[1744652258706,27.45800635,129.45,129.4,27.60016792]
[1744652259025,27.45800635,129.41,129.35,7.7309]
[1744652259320,27.45800635,129.39,129.35,7.7309]
[1744652259701,27.45800635,129.39,129.35,35.18890635]
[1744652259899,27.45800635,129.38,129.35,7.7309]
[1744652260102,18.64964886,129.41,129.35,7.7309]
[1744652260103,27.45800635,129.37,129.35,7.7309]
[1744652260322,27.45800635,129.38,129.35,7.7309]
[1744652261521,27.45800635,129.39,129.35,27.45800635]
[1744652261711,24.07696898,129.41,129.36,27.45800635]
[1744652261915,51.53497533,129.41,129.36,27.45800635]
[1744652262227,27.45800635,129.4,129.36,27.45800635]
[1744652262403,24.07696898,129.41,129.36,27.45800635]
[1744652262608,24.07696898,129.41,129.37,27.45800635]
[1744652262910,24.07696898,129.41,129.38,27.45800635]
[1744652263298,27.45800635,129.41,129.35,0.28432314]
[1744652263500,27.45800635,129.4,129.36,35.18830635]
[1744652263920,27.45800635,129.41,129.36,54.51420635]
[1744652265727,27.45800635,129.42,129.38,27.45800635]
[1744652265915,6.035,129.43,129.38,27.45800635]
[1744652266116,16.2464,129.46,129.41,27.45800635]
[1744652266316,27.45800635,129.44,129.4,27.45800635]
[1744652266526,27.45800635,129.44,129.39,27.45800635]
[1744652267030,27.45800635,129.44,129.4,27.45800635]
[1744652267328,0.0001,129.47,129.43,27.45800635]
[1744652267739,0.0001,129.47,129.44,27.45800635]
[1744652268430,24.07696898,129.45,129.44,0.28432314]
[1744652268624,24.07696898,129.45,129.42,19.3158]
[1744652268827,24.07696898,129.45,129.44,27.45800635]
[1744652269828,0.0001,129.47,129.44,79.31546276]
[1744652270136,0.0001,129.47,129.46,27.45800635]
[1744652270631,0.0001,129.47,129.46,27.60016792]
[1744652271528,0.0001,129.47,129.46,0.14216157]
[1744652271832,0.0001,129.47,129.45,35.18290635]
[1744652272126,0.0001,129.47,129.46,27.45800635]
[1744652273817,0.0001,129.47,129.46,35.18230635]
[1744652274121,0.0001,129.47,129.46,7.7243]
[1744652274333,0.0001,129.47,129.46,27.45800635]
[1744652274728,0.0001,129.47,129.45,7.7247]
[1744652275046,0.0001,129.47,129.43,7.7261]
[1744652275047,27.45810635,129.47,129.43,7.7261]
[1744652275335,0.0001,129.47,129.43,35.18410635]
[1744652278137,0.0001,129.47,129.44,27.45800635]
[1744652278839,0.0001,129.47,129.45,27.45800635]
[1744652279026,0.0001,129.47,129.46,27.45800635]
[1744652279442,0.0001,129.47,129.46,27.60016792]
[1744652280117,0.0001,129.47,129.46,35.32446792]
[1744652283232,0.063,129.49,129.46,35.32446792]
[1744652283434,0.063,129.49,129.48,81.05817427]
[1744652283761,0.063,129.51,129.49,0.14216157]
[1744652283934,0.0001,129.51,129.5,27.60016792]
[1744652284137,0.063,129.53,129.52,26.0]
[1744652284451,0.063,129.57,129.53,0.14216157]
[1744652284654,0.063,129.57,129.56,27.45800635]
[1744652284979,0.063,129.57,129.56,7.7184]
[1744652285355,0.063,129.57,129.55,7.7188]
[1744652285657,0.063,129.57,129.56,27.45800635]
[1744652286939,0.063,129.57,129.56,35.17640635]
[1744652288258,0.063,129.57,129.56,7.7184]
[1744652288459,0.063,129.57,129.56,35.17640635]
[1744652290362,0.063,129.57,129.55,7.7187]
[1744652291141,0.063,129.57,129.53,35.49800635]
[1744652291343,27.52100635,129.57,129.53,8.04]
[1744652291664,27.52100635,129.57,129.52,27.45800635]
[1744652291832,27.52100635,129.57,129.53,27.45800635]
[1744652291833,0.063,129.57,129.53,27.45800635]
[1744652292036,0.063,129.57,129.54,27.45800635]
[1744652292488,0.063,129.57,129.54,35.17720635]
[1744652293059,0.063,129.57,129.55,27.45800635]
[1744652293257,0.063,129.57,129.56,27.45800635]
[1744652293561,0.063,129.57,129.55,27.45800635]
[1744652294254,0.063,129.57,129.56,27.45800635]
[1744652294459,0.063,129.57,129.56,35.31856792]
[1744652294655,0.063,129.57,129.56,35.17640635]
[1744652295334,0.063,129.57,129.56,7.7184]
[1744652295761,0.063,129.57,129.54,35.47800635]
[1744652295943,0.063,129.57,129.54,43.19730635]
[1744652296139,0.063,129.57,129.56,27.45800635]
[1744652296445,0.063,129.57,129.56,35.17640635]
[1744652297664,0.063,129.57,129.55,35.17670635]
[1744652298046,0.063,129.57,129.56,27.45800635]
[1744652298349,0.063,129.57,129.56,35.17640635]
[1744652298556,0.063,129.57,129.56,27.45800635]
[1744652299141,0.063,129.57,129.56,17.1364588]
[1744652299446,0.063,129.57,129.56,17.27862037]
[1744652300367,0.063,129.57,129.56,24.99702037]
[1744652301260,0.063,129.57,129.56,25.13918194]
[1744652301461,0.063,129.57,129.56,7.86056157]
[1744652301662,0.063,129.57,129.56,24.99702037]
[1744652303171,0.063,129.57,129.56,7.7184]
[1744652303670,0.063,129.57,129.54,25.1564588]
[1744652303964,0.063,129.57,129.54,8.02]
[1744652304368,0.063,129.57,129.55,0.14216157]
[1744652304548,0.063,129.57,129.56,17.27862037]
[1744652304750,0.063,129.57,129.56,24.99702037]
[1744652306064,0.063,129.57,129.56,43.1364588]
[1744652306370,0.063,129.57,129.56,17.1364588]
[1744652307273,0.063,129.58,129.57,0.14216157]
[1744652307573,0.063,129.58,129.57,53.56226333]
[1744652308068,0.063,129.58,129.57,53.7044249]
[1744652309370,0.063,129.58,129.57,91.4222249]
[1744652310246,0.063,129.63,129.59,0.14216157]
[1744652310464,0.063,129.63,129.62,27.42010176]
[1744652310873,0.063,129.63,129.6,27.56226333]
[1744652311072,0.063,129.63,129.6,27.42010176]
[1744652311282,0.063,129.63,129.61,7.7154]
[1744652311875,0.063,129.63,129.59,43.15650176]
[1744652312371,0.063,129.63,129.61,27.42010176]
[1744652312764,0.063,129.63,129.6,27.42010176]
[1744652313260,0.063,129.63,129.61,35.13550176]
[1744652313872,0.063,129.63,129.6,7.7158]
[1744652314171,0.063,129.63,129.6,35.13590176]
[1744652314668,0.063,129.63,129.6,7.7158]
[1744652315563,0.063,129.63,129.59,35.13650176]
[1744652315767,0.063,129.63,129.59,27.42010176]
[1744652316352,0.063,129.63,129.6,27.42010176]
[1744652316852,0.063,129.63,129.61,27.42010176]
[1744652317053,0.063,129.63,129.62,35.13490176]
[1744652317483,0.063,129.63,129.62,7.7148]
[1744652318271,0.063,129.63,129.62,35.13490176]
[1744652319363,0.063,129.63,129.61,7.7151]
[1744652319670,0.063,129.63,129.6,7.7159]
[1744652319848,0.063,129.63,129.59,35.42010176]
[1744652320045,0.063,129.63,129.61,27.42010176]
[1744652321261,0.063,129.63,129.59,35.0079]
[1744652321574,0.063,129.65,129.62,27.56226333]
[1744652321760,0.063,129.65,129.64,27.42010176]
[1744652322572,27.48310176,129.65,129.61,7.7154]
[1744652322872,27.42010176,129.63,129.61,7.7154]
[1744652323477,27.42010176,129.63,129.59,27.008]
[1744652323651,27.42010176,129.62,129.59,7.7166]
[1744652323857,27.42010176,129.61,129.58,7.7169]
[1744652324574,9.3621,129.64,129.58,7.7169]
[1744652324780,27.42010176,129.62,129.58,7.7169]
[1744652325276,27.42010176,129.61,129.58,7.7169]
[1744652326077,27.42010176,129.63,129.58,35.13700176]
[1744652326382,7.7138,129.64,129.58,7.7169]
[1744652326568,27.42010176,129.61,129.58,7.7169]
[1744652327165,27.42010176,129.61,129.57,7.7178]
[1744652327351,27.42010176,129.61,129.57,35.13790176]
[1744652328682,27.42010176,129.61,129.57,7.7178]
[1744652329285,17.13752893,129.61,129.56,44.15062893]
[1744652330282,6.1703,129.65,129.56,7.7184]
[1744652330283,17.13752893,129.59,129.56,7.7184]
[1744652330469,17.13752893,129.58,129.55,15.7188]
[1744652330969,9.3078,129.61,129.55,15.7188]
[1744652331170,17.13752893,129.59,129.55,15.7188]
[1744652332081,17.13752893,129.59,129.54,17.13752893]
[1744652332382,7.7167,129.59,129.55,30.0]
[1744652332690,17.13752893,129.56,129.55,30.0]
[1744652332982,17.13752893,129.56,129.53,7.783]
[1744652333474,17.13752893,129.56,129.53,0.063]
[1744652334470,17.13752893,129.57,129.53,0.063]
[1744652334783,17.13752893,129.56,129.53,0.063]
[1744652334976,17.13752893,129.57,129.53,0.063]
[1744652336379,7.7169,129.59,129.53,0.063]
[1744652336380,17.13752893,129.56,129.53,0.063]
[1744652336579,17.13752893,129.58,129.53,17.20052893]
[1744652337462,17.13752893,129.57,129.53,17.20052893]
[1744652337667,17.13752893,129.57,129.54,7.7196]
[1744652338682,17.13752893,129.58,129.54,24.85712893]
[1744652338884,17.13752893,129.57,129.54,7.7196]
[1744652339392,17.13752893,129.56,129.54,7.7196]
[1744652339591,17.13752893,129.55,129.53,0.063]
[1744652339768,17.13752893,129.54,129.53,0.063]
[1744652341178,29.22242803,129.54,129.53,0.063]
[1744652341360,29.22242803,129.54,129.5,7.7217]
[1744652341677,12.0848991,129.54,129.53,24.9998905]
[1744652342076,12.0848991,129.55,129.54,0.14216157]
[1744652342291,12.0848991,129.55,129.54,17.42185207]
[1744652342588,12.0848991,129.55,129.54,17.2796905]
[1744652343380,9.91e-05,129.57,129.56,26.14216157]
[1744652343688,9.91e-05,129.57,129.56,51.14025207]
[1744652344502,9.91e-05,129.57,129.56,33.86056157]
[1744652344790,17.13752893,129.6,129.56,7.7184]
[1744652345005,17.13752893,129.62,129.57,17.13752893]
[1744652345182,17.13752893,129.61,129.56,24.85592893]
[1744652346496,24.85302893,129.61,129.56,24.85592893]
[1744652346896,17.13752893,129.61,129.56,24.85592893]
[1744652347189,17.13752893,129.59,129.53,110.2991]
[1744652347395,17.13752893,129.59,129.54,47.13752893]
[1744652348089,0.28432314,129.59,129.53,8.0]
[1744652348298,0.28432314,129.59,129.52,7.7205]
[1744652348299,17.13752893,129.55,129.52,7.7205]
[1744652348498,17.13752893,129.54,129.53,30.0]
[1744652348691,17.13752893,129.54,129.5,7.7217]
[1744652348878,17.13752893,129.53,129.5,7.7217]
[1744652349480,17.13752893,129.53,129.49,8.0]
[1744652349481,17.13752893,129.53,129.51,30.0]
[1744652350289,18.64964886,129.55,129.51,30.0]
[1744652350495,17.13752893,129.53,129.51,30.0]
[1744652350799,17.13752893,129.53,129.5,7.7218]
[1744652351176,17.13752893,129.52,129.49,7.7223]
[1744652351595,17.13752893,129.52,129.48,7.7859]
[1744652352272,17.13752893,129.53,129.48,24.92342893]
[1744652352474,17.13752893,129.52,129.48,7.7859]
[1744652352678,18.933972,129.53,129.48,0.063]
[1744652352871,17.13752893,129.49,129.48,0.063]
[1744652353095,17.13752893,129.5,129.48,0.063]
[1744652353271,17.13752893,129.51,129.48,0.063]
[1744652353678,17.13752893,129.51,129.48,7.786]
[1744652354379,5.31950668,129.5,129.47,9.50222939]
[1744652355108,5.31950668,129.5,129.46,17.20052893]
[1744652355291,17.13752893,129.49,129.46,0.063]
[1744652356201,5.31950668,129.48,129.46,7.7873]
[1744652356992,5.31950668,129.47,129.46,7.7873]
[1744652357802,5.31950668,129.47,129.46,24.92482893]
[1744652358292,5.31950668,129.47,129.46,25.0669905]
[1744652359304,48.02255649,129.5,129.46,25.0669905]
[1744652359909,65.16008542,129.5,129.46,7.7873]
[1744652360091,24.05769345,129.48,129.46,24.92482893]
[1744652360984,24.05769345,129.48,129.47,17.13752893]
[1744652361303,24.05769345,129.48,129.46,7.7873]
[1744652361495,24.05769345,129.48,129.46,0.063]
[1744652362406,5.30340089,129.47,129.46,0.063]
[1744652363486,22.44092982,129.47,129.46,0.063]
[1744652363884,5.30340089,129.47,129.46,0.063]
[1744652364910,46.49862327,129.47,129.46,0.063]
[1744652365404,33.0444946,129.47,129.46,0.063]
[1744652365721,15.90696567,129.47,129.43,17.13752893]
[1744652366000,17.13752893,129.42,129.38,17.13752893]
[1744652366301,17.13752893,129.43,129.38,17.13752893]
[1744652366504,17.13752893,129.43,129.4,30.0]
[1744652367207,17.13752893,129.43,129.4,37.7278]
[1744652367602,17.13752893,129.42,129.4,37.7278]
[1744652367991,17.13752893,129.42,129.39,7.7282]
[1744652368981,17.13752893,129.42,129.38,7.7291]
[1744652369903,17.13752893,129.41,129.38,7.7291]
[1744652370112,17.13752893,129.41,129.37,7.7925]
[1744652370812,17.13752893,129.42,129.37,24.93002893]
[1744652371110,24.0332506,129.45,129.41,17.13752893]
[1744652371297,24.0332506,129.45,129.44,17.13752893]
[1744652371607,24.0332506,129.45,129.44,17.2796905]
[1744652371805,24.0332506,129.45,129.44,36.35582407]
[1744652371806,5.06e-05,129.45,129.44,36.35582407]
[1744652372015,58.62612127,129.51,129.45,0.14216157]
[1744652372194,48.02255649,129.5,129.49,17.13752893]
[1744652373198,48.02255649,129.5,129.49,24.86012893]
[1744652373522,8.0,129.55,129.49,24.86012893]
[1744652373706,23.46402893,129.56,129.52,17.13752893]
[1744652373899,23.46402893,129.56,129.49,27.0291]
[1744652373900,17.13752893,129.55,129.5,17.13752893]
[1744652374820,17.13752893,129.54,129.5,17.13752893]
[1744652375209,27.44944977,129.54,129.5,7.7215]
[1744652375413,27.44944977,129.53,129.49,7.7223]
[1744652375590,27.44944977,129.53,129.49,35.17174977]
[1744652375911,27.44944977,129.53,129.49,7.7223]
[1744652376093,27.44944977,129.53,129.49,35.17174977]
[1744652376407,26.36874886,129.55,129.47,19.3093]
[1744652376611,27.44944977,129.53,129.49,27.44944977]
[1744652376817,27.44944977,129.53,129.48,57.44944977]
[1744652377015,27.44944977,129.53,129.49,27.44944977]
[1744652377416,27.44944977,129.52,129.48,30.0]
[1744652377597,27.44944977,129.49,129.48,30.0]
[1744652378203,18.64964886,129.53,129.47,27.44944977]
[1744652378494,18.64964886,129.53,129.48,7.7232]
[1744652378495,27.44944977,129.51,129.48,7.7232]
[1744652378710,26.37004886,129.53,129.44,35.17494977]
[1744652378711,27.44944977,129.49,129.44,35.17494977]
[1744652378910,27.44944977,129.48,129.45,30.0]
[1744652379915,27.44944977,129.48,129.45,37.7247]
[1744652380523,27.44944977,129.5,129.45,37.7247]
[1744652380703,27.44944977,129.5,129.46,27.44944977]
[1744652381619,27.44944977,129.49,129.45,35.17414977]
[1744652382322,27.44944977,129.5,129.45,35.17414977]
[1744652382700,27.44944977,129.49,129.45,35.17414977]
[1744652383524,27.44944977,129.46,129.42,19.3166]
[1744652383727,27.44944977,129.46,129.42,46.76604977]
[1744652384020,27.44944977,129.47,129.42,46.76604977]
[1744652384226,27.44944977,129.46,129.42,46.76604977]